bitfinex/quotes_SOLUSD_20251120
["timestamp","ask_amount","ask_price","bid_price","bid_amount"]
[1763657318984,18.83096,132.38,132.33,7.93281381]
[1763657319224,18.12096,132.38,132.35,7.93281381]
[1763657319491,18.12096,132.37,132.29,0.58]
[1763657319681,0.71,132.38,132.35,7.93281381]
[1763657319989,0.71,132.38,132.34,7.93281381]
[1763657320364,0.71,132.38,132.29,0.58]
[1763657320572,0.71,132.38,132.34,7.93281381]
[1763657320777,9.78882769,132.37,132.33,7.93281381]
[1763657320977,7.93281381,132.36,132.28,1.9]
[1763657321188,0.71,132.36,132.32,7.93281381]
[1763657321389,68.12096,132.39,132.29,0.58]
[1763657321562,0.71,132.38,132.35,7.93281381]
[1763657321884,0.71,132.38,132.33,7.93281381]
[1763657322201,0.71,132.38,132.34,7.93281381]
[1763657322502,50.0,132.43,132.37,7.93281381]
[1763657322667,50.71,132.43,132.39,7.93281381]
[1763657323037,9.78882769,132.41,132.36,7.93281381]
[1763657323199,0.71,132.4,132.36,7.93281381]
[1763657323513,0.71,132.4,132.34,7.93281381]
[1763657323514,8.64281381,132.4,132.34,7.93281381]
[1763657323818,8.64281381,132.4,132.33,7.93281381]
[1763657323819,68.12096,132.38,132.33,7.93281381]
[1763657324186,0.71,132.37,132.29,1.9]
[1763657324398,0.71,132.37,132.33,7.93281381]
[1763657324584,9.49882769,132.37,132.33,7.93281381]
[1763657324787,9.49882769,132.37,132.28,20.69096]
[1763657324987,9.49882769,132.37,132.29,18.12096]
[1763657324988,7.93281381,132.36,132.29,18.12096]
[1763657325189,18.12096,132.33,132.29,7.93281381]
[1763657325406,68.12096,132.36,132.31,7.93281381]
[1763657325589,18.12096,132.36,132.32,7.93281381]
[1763657326017,18.12096,132.37,132.33,7.93281381]
[1763657326205,50.0,132.42,132.36,7.93281381]
[1763657326392,50.0,132.42,132.38,7.93281381]
[1763657326591,50.0,132.42,132.32,9.83281381]
[1763657326592,0.71,132.41,132.32,20.02096]
[1763657326816,0.71,132.41,132.34,0.67]
[1763657327009,0.71,132.41,132.38,7.93281381]
[1763657327322,0.71,132.41,132.32,35.51084088]
[1763657327323,26.76377381,132.41,132.36,7.93281381]
[1763657327617,26.76377381,132.41,132.32,9.83281381]
[1763657327618,59.78882769,132.4,132.37,7.93281381]
[1763657327912,60.49882769,132.4,132.37,7.93281381]
[1763657328083,0.71,132.39,132.37,7.93281381]
[1763657328286,50.0,132.42,132.37,7.93281381]
[1763657328692,57.93281381,132.42,132.34,0.67]
[1763657328903,50.0,132.42,132.36,7.93281381]
[1763657329111,57.93281381,132.42,132.36,7.93281381]
[1763657329283,57.93281381,132.42,132.38,7.93281381]
[1763657329284,50.0,132.42,132.38,7.93281381]
[1763657329612,50.0,132.44,132.39,7.93281381]
[1763657329811,50.0,132.44,132.36,0.67]
[1763657329812,50.0,132.44,132.38,7.93281381]
[1763657330111,68.12096,132.44,132.39,7.93281381]
[1763657330417,10.44882769,132.43,132.39,7.93281381]
[1763657330625,0.66,132.43,132.36,0.67]
[1763657330835,9.78882769,132.45,132.41,7.93281381]
[1763657330996,50.66,132.46,132.42,7.93281381]
[1763657331314,0.66,132.45,132.4,7.93281381]
[1763657331524,9.78882769,132.44,132.35,2.61]
[1763657331727,0.66,132.45,132.35,0.71]
[1763657331728,18.3816415,132.45,132.35,0.71]
[1763657332025,50.0,132.43,132.39,7.93281381]
[1763657332399,0.66,132.42,132.39,7.93281381]
[1763657333521,77.90978769,132.41,132.37,7.93281381]
[1763657333732,50.0,132.43,132.37,0.71]
[1763657333907,10.44882769,132.42,132.38,7.93281381]
[1763657334221,9.78882769,132.4,132.35,7.93281381]
[1763657334525,0.66,132.39,132.35,7.93281381]
[1763657334716,0.66,132.39,132.34,7.93281381]
[1763657334917,9.78882769,132.4,132.35,7.93281381]
[1763657335116,9.78882769,132.37,132.34,7.93281381]
[1763657335416,9.78882769,132.37,132.33,7.93281381]
[1763657335615,10.44882769,132.37,132.33,7.93281381]
[1763657336016,9.78882769,132.37,132.33,7.93281381]
[1763657336316,0.66,132.36,132.32,7.93281381]
[1763657336517,0.66,132.36,132.33,7.93281381]
[1763657337399,0.66,132.36,132.32,7.93281381]
[1763657337797,0.66,132.36,132.34,7.93281381]
[1763657338216,0.66,132.36,132.33,7.93281381]
[1763657338431,0.66,132.36,132.34,7.93281381]
[1763657338926,27.90978769,132.37,132.34,7.93281381]
[1763657339827,27.90978769,132.37,132.31,0.71]
[1763657339828,9.78882769,132.37,132.31,0.71]
[1763657340033,50.66,132.36,132.27,19.03096]
[1763657340216,9.78882769,132.35,132.27,0.2]
[1763657340418,17.7216415,132.28,132.27,0.2]
[1763657340626,50.0,132.26,132.21,7.93281381]
[1763657340828,50.0,132.26,132.2,0.2]
[1763657340829,51.88,132.28,132.2,0.91]
[1763657341022,50.0,132.28,132.25,7.93281381]
[1763657341219,9.78882769,132.29,132.27,7.93281381]
[1763657341566,9.78882769,132.32,132.28,7.93281381]
[1763657341790,9.78882769,132.32,132.29,7.93281381]
[1763657342253,9.78882769,132.34,132.31,7.93281381]
[1763657342457,0.66,132.36,132.31,7.93281381]
[1763657342623,9.78882769,132.35,132.27,18.12096]
[1763657342822,9.78882769,132.33,132.3,7.93281381]
[1763657343125,50.0,132.38,132.32,7.93281381]
[1763657343444,17.7216415,132.37,132.31,7.93281381]
[1763657343640,17.7216415,132.37,132.26,7.93281381]
[1763657343641,50.0,132.31,132.26,7.93281381]
[1763657343842,17.7216415,132.28,132.22,7.93281381]
[1763657344059,50.0,132.27,132.23,7.93281381]
[1763657344260,9.78882769,132.28,132.24,7.93281381]
[1763657344623,9.78882769,132.3,132.27,7.93281381]
[1763657344822,50.66,132.33,132.28,7.93281381]
[1763657345024,9.78882769,132.34,132.27,18.12096]
[1763657345326,50.0,132.35,132.33,7.93281381]
[1763657345549,50.0,132.35,132.27,18.12096]
[1763657345550,0.66,132.35,132.32,7.93281381]
[1763657345748,0.66,132.35,132.31,7.93281381]
[1763657345947,0.66,132.35,132.32,7.93281381]
[1763657346253,0.66,132.38,132.34,7.93281381]
[1763657346449,9.78882769,132.4,132.36,7.93281381]
[1763657346646,0.66,132.41,132.32,7.93281381]
[1763657346883,0.66,132.44,132.4,7.93281381]
[1763657347176,9.78882769,132.44,132.39,7.93281381]
[1763657347390,9.78882769,132.44,132.4,7.93281381]
[1763657347391,50.0,132.43,132.4,7.93281381]
[1763657347549,50.0,132.46,132.42,7.93281381]
[1763657347749,0.66,132.45,132.38,0.71]
[1763657347974,0.66,132.45,132.39,7.93281381]
[1763657347975,59.78882769,132.44,132.39,7.93281381]
[1763657348144,59.78882769,132.44,132.37,0.71]
[1763657348346,9.78882769,132.38,132.27,0.71]
[1763657348646,1.9,132.39,132.27,0.71]
[1763657348842,9.78882769,132.36,132.27,0.71]
[1763657349047,9.78882769,132.33,132.24,8.64281381]
[1763657349298,9.78882769,132.33,132.21,0.71]
[1763657349299,17.7216415,132.31,132.21,0.71]
[1763657349445,17.7216415,132.31,132.22,0.71]
[1763657349651,50.66,132.32,132.2,0.2]
[1763657349652,7.93281381,132.24,132.2,0.2]
[1763657349880,9.78882769,132.25,132.2,0.2]
[1763657350046,17.7216415,132.23,132.2,0.2]
[1763657350247,59.78882769,132.2,132.14,7.93281381]
[1763657350468,18.12096,132.21,132.15,7.93281381]
[1763657350648,18.12096,132.21,132.16,7.93281381]
[1763657350858,18.12096,132.21,132.12,2.61]
[1763657350859,50.0,132.19,132.12,2.61]
[1763657351082,18.62096,132.21,132.16,7.93281381]
[1763657351250,68.62096,132.24,132.18,7.93281381]
[1763657351446,59.78882769,132.18,132.1,0.71]
[1763657351675,9.78882769,132.15,132.13,7.93281381]
[1763657351882,50.0,132.16,132.08,7.93281381]
[1763657351883,59.78882769,132.16,132.08,7.93281381]
[1763657352082,17.7216415,132.13,132.04,0.71]
[1763657352368,9.78882769,132.11,132.04,0.71]
[1763657352575,50.0,132.14,132.05,18.12096]
[1763657352879,50.0,132.14,132.04,0.71]
[1763657352880,22.27181998,132.13,132.08,12.48299229]
[1763657353089,9.78882769,132.13,132.09,12.48299229]
[1763657353287,9.78882769,132.13,132.02,0.1]
[1763657353288,50.0,132.12,132.02,0.1]
[1763657353484,12.48299229,132.11,132.06,12.48299229]
[1763657353688,50.0,132.14,132.1,12.48299229]
[1763657353863,50.0,132.14,132.07,0.71]
[1763657354196,50.0,132.14,132.1,12.48299229]
[1763657354368,22.27181998,132.13,132.04,0.71]
[1763657354564,50.0,132.12,132.1,12.48299229]
[1763657354775,59.78882769,132.14,132.04,0.71]
[1763657354981,51.9,132.18,132.05,7.57251832]
[1763657355184,51.9,132.18,132.13,12.48299229]
[1763657355185,9.78882769,132.17,132.13,12.48299229]
[1763657355390,22.27181998,132.17,132.06,18.83096]
[1763657355578,81.10395229,132.16,132.1,12.48299229]
[1763657355780,9.78882769,132.16,132.12,12.48299229]
[1763657355987,9.78882769,132.14,132.11,12.48299229]
[1763657356286,50.0,132.15,132.11,12.48299229]
[1763657356590,10.28882769,132.14,132.1,12.48299229]
[1763657356896,9.78882769,132.11,132.08,12.48299229]
[1763657357188,1.9,132.17,132.05,0.71]
[1763657357189,51.9,132.17,132.1,12.48299229]
[1763657357493,9.78882769,132.14,132.05,0.71]
[1763657357685,72.27181998,132.09,132.04,12.48299229]
[1763657357865,72.27181998,132.09,132.05,12.48299229]
[1763657357866,59.78882769,132.09,132.05,12.48299229]
[1763657358070,50.5,132.12,132.06,12.48299229]
[1763657358285,9.78882769,132.11,132.08,12.48299229]
[1763657358492,50.0,132.14,132.1,12.48299229]
[1763657358693,9.78882769,132.13,132.1,12.48299229]
[1763657358989,9.78882769,132.13,132.05,20.02096]
[1763657358990,9.78882769,132.13,132.09,12.48299229]
[1763657359197,9.78882769,132.1,132.03,0.71]
[1763657359373,50.0,132.11,132.04,0.71]
[1763657359566,50.0,132.11,132.07,12.48299229]
[1763657359787,50.0,132.13,132.04,18.83096]
[1763657360079,9.78882769,132.16,132.12,12.48299229]
[1763657360398,9.78882769,132.15,132.11,12.48299229]
[1763657360607,22.77181998,132.15,132.1,12.48299229]
[1763657360814,70.02096,132.16,132.02,0.78]
[1763657360815,9.78882769,132.09,132.02,0.78]
[1763657360976,22.27181998,132.09,132.04,12.48299229]
[1763657361309,50.0,132.07,132.03,12.48299229]
[1763657361601,9.78882769,132.08,132.04,12.48299229]
[1763657361785,9.78882769,132.08,132.02,0.78]
[1763657361786,50.0,132.09,132.05,12.48299229]
[1763657361972,50.0,132.09,132.06,12.48299229]
[1763657362171,10.28882769,132.1,132.02,0.1]
[1763657362172,68.12096,132.05,132.02,0.1]
[1763657362398,9.78882769,132.04,132.02,0.1]
[1763657362975,22.27181998,132.04,132.02,0.1]
[1763657363175,72.77181998,132.03,132.02,0.1]
[1763657363798,62.18882769,132.03,132.02,0.1]
[1763657364101,74.67181998,132.03,132.02,0.1]
[1763657364472,62.18882769,132.03,132.02,0.1]
[1763657364669,74.67181998,132.03,132.02,0.1]
[1763657365118,59.78882769,131.97,131.96,0.2]
[1763657365272,59.78882769,131.93,131.85,0.68]
[1763657365472,50.0,131.95,131.91,12.48299229]
[1763657365702,22.27181998,131.94,131.85,0.68]
[1763657365884,9.78882769,131.92,131.86,0.68]
[1763657366209,9.78882769,131.92,131.89,12.48299229]
[1763657366621,50.0,131.93,131.86,0.68]
[1763657366785,9.78882769,131.92,131.88,12.48299229]
[1763657367114,9.78882769,131.92,131.86,0.68]
[1763657367405,9.78882769,131.92,131.84,2.4]
[1763657367406,9.78882769,131.88,131.85,12.48299229]
[1763657367693,50.0,131.89,131.87,12.48299229]
[1763657367901,50.0,131.89,131.86,12.48299229]
[1763657368116,9.78882769,131.88,131.84,12.98299229]
[1763657368471,9.78882769,131.85,131.84,0.5]
[1763657368873,9.78882769,131.87,131.84,12.98299229]
[1763657369311,30.60395229,131.89,131.84,12.98299229]
[1763657369312,9.78882769,131.89,131.86,12.48299229]
[1763657369492,22.27181998,131.89,131.85,12.48299229]
[1763657369802,9.78882769,131.89,131.85,12.48299229]
[1763657369989,9.78882769,131.87,131.84,0.5]
[1763657370380,1.9,131.91,131.85,12.48299229]
[1763657370381,50.0,131.9,131.85,12.48299229]
[1763657370609,9.78882769,131.89,131.85,12.48299229]
[1763657371009,9.78882769,131.86,131.84,0.5]
[1763657371519,90.69277998,131.85,131.84,0.5]
[1763657372292,72.57181998,131.85,131.84,0.5]
[1763657372493,87.05481226,131.85,131.84,0.5]
[1763657372694,9.78882769,131.84,131.83,0.1]
[1763657372893,22.57181998,131.84,131.83,0.1]
[1763657373107,10.08882769,131.84,131.83,0.1]
[1763657373318,22.57181998,131.84,131.83,0.1]
[1763657373621,40.69277998,131.84,131.83,0.1]
[1763657373801,40.39277998,131.84,131.83,0.1]
[1763657374004,22.57181998,131.84,131.83,0.1]
[1763657374729,30.15677143,131.84,131.83,0.1]
[1763657375023,22.57181998,131.84,131.83,0.1]
[1763657375223,10.08882769,131.84,131.83,0.1]
[1763657375599,22.57181998,131.84,131.83,0.1]
[1763657375803,22.27181998,131.84,131.83,0.1]
[1763657376037,9.78882769,131.84,131.83,0.1]
[1763657376210,2.2,131.86,131.83,0.1]
[1763657376406,50.0,131.84,131.83,0.1]
[1763657376734,59.78882769,131.84,131.83,0.1]
[1763657376907,72.27181998,131.84,131.83,0.1]
[1763657377107,59.78882769,131.84,131.83,0.1]
[1763657377310,72.27181998,131.84,131.83,0.1]
[1763657377605,20.32096,131.86,131.83,0.1]
[1763657377606,9.78882769,131.86,131.83,0.1]
[1763657378037,50.0,131.87,131.83,0.1]
[1763657378214,62.48299229,131.87,131.83,0.76]
[1763657378412,50.0,131.87,131.83,0.76]
[1763657378613,50.0,131.87,131.84,12.48299229]
[1763657378926,9.78882769,131.86,131.83,0.1]
[1763657379235,22.27181998,131.86,131.83,0.1]
[1763657379538,9.78882769,131.86,131.83,0.1]
[1763657379702,9.78882769,131.84,131.83,0.1]
[1763657380102,22.57181998,131.84,131.83,0.1]
[1763657380332,68.12096,131.81,131.79,1.93593088]
[1763657380634,12.48299229,131.8,131.79,1.93593088]
[1763657381136,51.9,131.85,131.79,2.59593088]
[1763657381305,50.0,131.89,131.8,0.66]
[1763657381508,12.48299229,131.85,131.8,0.66]
[1763657381723,11.68882769,131.9,131.8,0.66]
[1763657381724,1.9,131.9,131.8,0.66]
[1763657382013,50.0,131.92,131.8,0.66]
[1763657382014,12.48299229,131.88,131.8,0.66]
[1763657382412,12.48299229,131.87,131.8,0.66]
[1763657382610,12.48299229,131.9,131.81,12.48299229]
[1763657382816,12.48299229,131.9,131.83,12.48299229]
[1763657383029,12.48299229,131.93,131.85,12.48299229]
[1763657383234,62.48299229,131.93,131.86,2.56]
[1763657383429,50.0,131.93,131.86,2.56]
[1763657383709,22.27181998,131.92,131.86,13.14299229]
[1763657383931,22.27181998,131.92,131.87,13.14299229]
[1763657384131,50.0,131.93,131.88,13.14299229]
[1763657384813,50.0,131.93,131.88,12.48299229]
[1763657385011,50.0,131.93,131.89,13.14299229]
[1763657385915,30.60395229,131.95,131.91,12.48299229]
[1763657385916,50.0,131.95,131.91,12.48299229]
[1763657386226,0.3,132.0,131.94,12.48299229]
[1763657386545,9.78882769,131.99,131.96,12.48299229]
[1763657386863,9.78882769,131.99,131.97,12.48299229]
[1763657387060,50.0,132.0,131.97,12.48299229]
[1763657387211,50.0,132.02,131.98,0.66]
[1763657387410,51.9,132.04,131.98,0.66]
[1763657387839,51.9,132.04,132.02,12.48299229]
[1763657388010,50.0,132.06,132.03,12.48299229]
[1763657388211,1.9,132.05,132.03,12.48299229]
[1763657388414,1.9,132.06,132.04,12.48299229]
[1763657388627,11.78882769,132.07,132.04,12.48299229]
[1763657389030,2.0,132.07,132.05,12.48299229]
[1763657389232,2.0,132.07,132.04,13.14299229]
[1763657389433,2.0,132.07,132.05,12.48299229]
[1763657389642,59.78882769,132.06,132.03,12.48299229]
[1763657390246,59.78882769,132.06,132.04,12.48299229]
[1763657390413,50.0,132.06,132.01,0.66]
[1763657390640,0.1,132.07,132.05,12.48299229]
[1763657391056,50.1,132.07,132.04,12.48299229]
[1763657391459,11.68882769,132.06,132.03,12.48299229]
[1763657391681,0.1,132.07,131.98,1.9]
[1763657391855,50.1,132.07,132.05,12.48299229]
[1763657392061,9.78882769,132.06,131.98,2.59]
[1763657392371,9.78882769,132.06,131.98,0.69]
[1763657392372,9.78882769,132.03,131.98,0.69]
[1763657392575,51.9,132.02,131.98,0.69]
[1763657392782,9.78882769,132.01,131.95,0.69]
[1763657393156,22.27181998,132.01,131.95,0.69]
[1763657393355,50.0,132.0,131.96,12.48299229]
[1763657393747,50.0,132.04,131.97,0.69]
[1763657393946,50.0,132.02,131.97,13.17299229]
[1763657394149,1.9,132.01,131.98,12.48299229]
[1763657394655,72.27181998,132.0,131.95,12.48299229]
[1763657394872,72.27181998,132.0,131.9,1.9]
[1763657395060,72.27181998,132.0,131.94,0.69]
[1763657395250,12.48299229,131.99,131.94,13.17299229]
[1763657395579,51.9,131.98,131.94,12.48299229]
[1763657395871,9.78882769,131.97,131.93,12.48299229]
[1763657396174,50.0,131.96,131.92,12.48299229]
[1763657396347,1.9,131.95,131.93,12.48299229]
[1763657396680,1.9,131.95,131.92,0.69]
[1763657396979,1.9,131.95,131.94,12.48299229]
[1763657397766,1.9,131.99,131.94,13.17299229]
[1763657397970,9.78882769,132.0,131.89,1.9]
[1763657397971,1.9,131.98,131.96,12.48299229]
[1763657398181,1.9,131.98,131.95,0.69]
[1763657398182,50.0,132.01,131.97,12.48299229]
[1763657398352,1.9,132.0,131.97,12.48299229]
[1763657398768,50.0,132.01,131.96,12.48299229]
[1763657398769,62.48299229,132.01,131.96,12.48299229]
[1763657398982,1.9,132.0,131.97,12.48299229]
[1763657399361,50.0,132.01,131.97,12.48299229]
[1763657399572,1.9,132.0,131.97,12.48299229]
[1763657399973,1.9,131.99,131.97,12.48299229]
[1763657400346,1.9,131.99,131.89,1.9]
[1763657400552,50.0,132.06,131.98,13.17299229]
[1763657400782,1.9,132.06,131.99,0.69]
[1763657401163,1.9,132.06,132.03,12.48299229]
[1763657401365,51.9,132.06,132.03,12.48299229]
[1763657401569,50.0,132.08,132.05,12.48299229]
[1763657401767,50.0,132.11,132.06,13.17299229]
[1763657402001,50.0,132.15,132.1,12.48299229]
[1763657402197,50.4,132.15,132.07,0.69]
[1763657402487,51.9,132.15,132.13,12.48299229]
[1763657402660,56.10556586,132.21,132.14,12.48299229]
[1763657402661,50.0,132.17,132.14,12.48299229]
[1763657402859,50.4,132.2,132.16,12.48299229]
[1763657403069,1.9,132.19,132.18,12.48299229]
[1763657403260,50.0,132.18,132.05,1.99999999]
[1763657403481,62.48299229,132.14,132.04,0.69]
[1763657403684,68.12096,132.12,132.04,0.69]
[1763657404002,50.0,132.08,132.05,12.48299229]
[1763657404202,0.4,132.11,132.06,12.48299229]
[1763657404203,1.9,132.07,132.06,12.48299229]
[1763657404361,1.9,132.07,132.05,12.48299229]
[1763657404688,64.38299229,132.07,132.02,12.48299229]
[1763657404903,22.27181998,132.04,131.9,1.99999999]
[1763657405188,50.0,132.05,132.01,12.48299229]
[1763657405393,1.9,132.05,132.01,12.48299229]
[1763657405556,12.88299229,132.04,132.0,12.48299229]
[1763657405756,51.9,132.05,132.0,12.48299229]
[1763657405989,18.12096,132.09,132.04,12.48299229]
[1763657405990,68.12096,132.09,132.04,12.48299229]
[1763657406161,68.12096,132.09,132.04,0.69]
[1763657406162,1.9,132.08,132.04,0.69]
[1763657406357,62.48299229,132.07,131.94,12.48299229]
[1763657406586,62.48299229,132.05,132.0,12.48299229]
[1763657406761,50.0,132.05,131.95,2.59]
[1763657406965,51.9,132.05,132.02,12.48299229]
[1763657407188,1.9,132.05,132.02,12.48299229]
[1763657407398,50.0,132.07,132.04,12.48299229]
[1763657407685,1.9,132.12,132.06,12.48299229]
[1763657407894,51.9,132.13,132.1,12.48299229]
[1763657408495,50.0,132.13,132.09,12.48299229]
[1763657408788,50.0,132.15,132.11,12.48299229]
[1763657408957,1.9,132.14,132.11,12.48299229]
[1763657409383,50.0,132.11,132.03,0.69]
[1763657409569,1.9,132.1,132.04,0.69]
[1763657409776,1.9,132.11,132.08,12.48299229]
[1763657410063,1.9,132.13,132.1,12.48299229]
[1763657410306,50.0,132.12,132.04,2.59]
[1763657410587,50.0,132.12,132.08,12.48299229]
[1763657410788,50.0,132.12,132.09,12.48299229]
[1763657410976,50.0,132.12,132.05,0.69]
[1763657410977,62.48299229,132.12,132.05,0.69]
[1763657411194,12.48299229,132.1,132.01,0.69]
[1763657411374,12.48299229,132.05,131.98,0.69]
[1763657411560,51.9,132.04,132.0,12.48299229]
[1763657411762,50.0,132.06,132.02,12.48299229]
[1763657412060,18.12096,132.07,131.95,0.69]
[1763657412061,62.48299229,132.04,131.95,0.69]
[1763657412261,62.48299229,132.04,131.99,12.48299229]
[1763657412480,80.60395229,132.01,131.95,12.48299229]
[1763657412799,1.9,132.0,131.96,7.98065102]
[1763657412959,57.98065102,131.99,131.92,1.9]
[1763657413173,57.98065102,131.99,131.84,9.98065101]
[1763657413174,7.98065102,131.96,131.91,7.98065102]
[1763657413375,7.98065102,131.96,131.84,7.98065102]
[1763657413376,51.9,131.95,131.87,1.9]
[1763657413681,1.9,131.94,131.87,1.9]
[1763657413878,1.9,131.95,131.88,0.69]
[1763657414077,7.98065102,131.94,131.88,0.69]
[1763657414332,7.98065102,131.92,131.85,0.69]
[1763657414475,1.9,131.91,131.88,7.98065102]
[1763657414674,1.9,131.91,131.85,0.69]
[1763657414904,1.9,131.91,131.87,7.98065102]
[1763657415105,1.9,131.91,131.85,0.69]
[1763657415327,0.4,132.01,131.9,7.98065102]
[1763657415607,50.0,131.96,131.92,7.98065102]
[1763657415812,1.9,131.95,131.92,7.98065102]
[1763657416017,68.12096,131.93,131.9,7.98065102]
[1763657416194,1.9,131.92,131.89,7.98065102]
[1763657416583,50.0,131.95,131.91,7.98065102]
[1763657416814,51.9,131.95,131.92,7.98065102]
[1763657416982,50.0,131.95,131.93,7.98065102]
[1763657417178,1.9,131.95,131.86,1.9]
[1763657417420,57.98065102,131.94,131.86,1.9]
[1763657417630,57.98065102,131.94,131.86,0.69]
[1763657417914,50.0,131.92,131.88,7.98065102]
[1763657418121,50.0,131.9,131.86,7.98065102]
[1763657418287,50.0,131.9,131.87,7.98065102]
[1763657418481,50.0,131.92,131.89,7.98065102]
[1763657418710,50.0,131.92,131.84,7.98065102]
[1763657418711,51.9,131.92,131.84,7.98065102]
[1763657418917,51.9,131.92,131.9,7.98065102]
[1763657419226,51.9,131.92,131.85,0.69]
[1763657419684,51.9,131.92,131.88,7.98065102]
[1763657419886,0.4,131.91,131.82,0.69]
[1763657420092,0.4,131.91,131.86,7.98065102]
[1763657420093,57.98065102,131.9,131.86,7.98065102]
[1763657420285,50.0,131.88,131.84,7.98065102]
[1763657420609,1.9,131.91,131.87,7.98065102]
[1763657420816,1.9,131.91,131.85,0.7]
[1763657421328,50.0,131.96,131.86,1.9]
[1763657421632,50.0,131.99,131.95,7.98065102]
[1763657421937,50.0,131.99,131.92,7.98065102]
[1763657421938,1.9,131.99,131.92,8.68065102]
[1763657422087,50.0,131.98,131.87,29.80978769]
[1763657422286,50.0,132.0,131.97,7.98065102]
[1763657422609,50.0,132.0,131.92,8.68065102]
[1763657422610,1.9,132.02,131.99,7.98065102]
[1763657422811,50.0,132.04,132.01,7.98065102]
[1763657423225,50.0,132.06,132.03,7.98065102]
[1763657423427,1.9,132.05,131.97,1.9]
[1763657423725,1.9,132.05,132.03,7.98065102]
[1763657424106,1.9,132.07,132.04,7.98065102]
[1763657424312,1.9,132.07,131.98,0.7]
[1763657424313,7.98065102,132.06,131.98,0.7]
[1763657424535,1.9,132.07,132.04,7.98065102]
[1763657424894,1.9,132.07,132.0,7.98065102]
[1763657425094,1.9,132.06,132.03,7.98065102]
[1763657425304,1.9,132.06,132.0,0.7]
[1763657425305,1.9,132.06,132.02,7.98065102]
[1763657425614,1.9,132.06,132.0,0.7]
[1763657425820,18.12096,132.04,132.0,7.98065102]
[1763657426021,18.12096,132.04,131.98,0.7]
[1763657426224,7.98065102,132.05,131.98,0.7]
[1763657426225,50.0,132.06,132.03,7.98065102]
[1763657426534,50.0,132.06,132.04,7.98065102]
[1763657427029,1.9,132.05,132.02,7.98065102]
[1763657427598,1.9,132.05,131.97,1.9]
[1763657427599,50.0,132.08,132.04,7.98065102]
[1763657427796,50.0,132.11,132.07,7.98065102]
[1763657428098,50.0,132.13,132.09,7.98065102]
[1763657428313,59.88065102,132.13,132.06,0.7]
[1763657428537,7.98065102,132.1,132.06,7.98065102]
[1763657428742,57.98065102,132.09,132.03,0.7]
[1763657428955,7.98065102,132.08,132.03,7.98065102]
[1763657429153,59.88065102,132.07,132.02,7.98065102]
[1763657429331,0.4,132.06,132.0,0.7]
[1763657429521,18.12096,132.03,131.97,0.7]
[1763657429725,18.12096,132.03,131.99,7.98065102]
[1763657429726,1.9,132.03,131.99,7.98065102]
[1763657430121,68.12096,132.01,131.93,0.68]
[1763657430322,50.0,132.04,132.0,7.98065102]
[1763657430626,1.9,132.03,132.0,7.98065102]
[1763657430947,50.0,132.06,132.02,7.98065102]
[1763657431247,1.9,132.05,132.01,7.98065102]
[1763657431435,1.9,132.05,132.0,0.68]
[1763657431626,1.9,132.05,132.02,7.98065102]
[1763657431975,1.9,132.05,132.0,0.68]
[1763657432158,50.4,132.04,131.97,0.68]
[1763657432319,50.0,132.06,132.01,7.98065102]
[1763657432520,77.90978769,132.08,132.03,7.98065102]
[1763657432745,1.9,132.07,132.03,7.98065102]
[1763657432956,50.0,132.08,132.0,0.68]
[1763657433159,50.0,132.1,132.06,7.98065102]
[1763657433336,7.98065102,132.08,132.0,0.68]
[1763657433536,50.0,132.07,132.02,7.98065102]
[1763657433852,1.9,132.06,132.03,7.98065102]
[1763657434354,50.0,132.1,132.04,0.68]
[1763657434522,50.0,132.12,132.08,7.98065102]